bitfinex/quotes_ETHUSD_20240716
["timestamp","ask_amount","ask_price","bid_price","bid_amount"]
[1721124100678,5.87594,3403.7,3403.6,0.146]
[1721124101432,8.81391,3403.7,3403.6,0.146]
[1721124101628,10.34911398,3403.7,3403.6,0.146]
[1721124101828,11.73127562,3403.7,3403.6,0.146]
[1721124102493,12.82482615,3403.7,3403.6,0.146]
[1721124102694,11.73127562,3403.7,3403.6,0.146]
[1721124103741,2.93885,3402.7,3402.3,2.3376]
[1721124103894,0.587766,3402.6,3402.3,2.3376]
[1721124104093,2.93885,3402.7,3402.3,2.3376]
[1721124105618,2.93893,3402.6,3402.3,2.3376]
[1721124105946,2.93915,3402.4,3401.9,2.2547]
[1721124106097,3.049,3402.3,3401.9,2.2547]
[1721124106602,5.98824,3402.3,3401.9,2.2547]
[1721124106997,3.049,3402.3,3401.9,2.2547]
[1721124107511,2.93911,3402.4,3401.9,2.2547]
[1721124108047,2.93919,3402.3,3401.9,2.2547]
[1721124108210,6.57602,3402.3,3401.9,2.2547]
[1721124108925,5.98819,3402.3,3401.9,2.2547]
[1721124109640,3.049,3402.3,3401.9,2.2547]
[1721124110143,5.87816,3402.5,3401.9,2.2547]
[1721124110300,2.93912,3402.4,3401.9,2.2547]
[1721124111457,13.35787,3402.7,3401.9,5.1942]
[1721124111458,2.93894,3402.6,3401.9,5.1942]
[1721124111814,2.93914,3402.4,3401.9,2.2547]
[1721124112047,2.93907,3402.5,3401.9,2.2547]
[1721124112554,2.93893,3402.6,3401.9,2.2547]
[1721124112705,2.93902,3402.5,3401.9,2.2547]
[1721124116082,2.93915,3402.4,3401.9,2.2547]
[1721124116679,5.9882,3402.3,3401.9,2.2547]
[1721124117351,5.9882,3402.3,3401.5,2.4265]
[1721124117352,2.93941,3402.1,3401.5,2.4265]
[1721124117556,5.87884,3402.1,3401.5,2.4265]
[1721124117759,3.049,3401.9,3401.5,2.4265]
[1721124118791,5.98853,3401.9,3401.5,2.4265]
[1721124120002,3.049,3401.9,3401.5,2.4265]
[1721124120644,2.93945,3402.0,3401.5,2.4265]
[1721124120850,2.93955,3401.9,3401.5,2.4265]
[1721124122261,2.93941,3402.1,3401.5,2.4265]
[1721124122797,13.35823,3402.3,3401.6,2.2941]
[1721124122798,10.419,3402.3,3401.6,2.2941]
[1721124123082,10.419,3402.3,3401.9,2.2941]
[1721124123295,13.35819,3402.3,3401.9,2.2941]
[1721124123501,16.29745,3402.3,3401.9,2.2941]
[1721124123857,13.35819,3402.3,3401.9,2.2941]
[1721124124187,10.419,3402.3,3401.9,2.2941]
[1721124124546,13.35822,3402.3,3401.9,2.2941]
[1721124126402,10.419,3402.3,3401.9,2.2941]
[1721124126611,2.93893,3402.6,3401.9,2.817464]
[1721124127179,2.93902,3402.5,3401.9,2.2941]
[1721124127919,3.10024785,3402.7,3401.9,2.2941]
[1721124127920,6.03914785,3402.7,3401.9,2.2941]
[1721124128418,3.10024785,3402.7,3401.9,2.2941]
[1721124129022,0.39572555,3402.6,3402.1,2.93934]
[1721124129434,0.39572555,3402.6,3401.9,5.23357]
[1721124129594,3.33471555,3402.6,3401.9,2.2941]
[1721124129916,5.98819,3402.3,3401.9,2.2941]
[1721124130079,0.39572555,3402.2,3401.9,2.2941]
[1721124130279,5.98819,3402.3,3401.9,2.2941]
[1721124130280,0.39582687,3402.1,3401.9,2.2941]
[1721124130531,0.39582687,3402.0,3401.9,2.2941]
[1721124130679,3.67976956,3402.0,3401.5,2.4845]
[1721124130898,3.44482687,3401.9,3401.5,2.4845]
[1721124131104,0.39582687,3401.8,3401.5,2.4845]
[1721124132516,0.54182687,3401.8,3401.5,2.4845]
[1721124132840,0.146,3401.8,3401.2,5.30812]
[1721124133503,0.146,3401.8,3401.2,5.30805]
[1721124133701,0.146,3401.8,3401.3,3.470835]
[1721124136334,0.146,3401.8,3401.3,2.94003]
[1721124136514,0.146,3401.8,3401.2,5.30807]
[1721124136828,0.146,3401.8,3400.9,2.4408]
[1721124136829,2.93996,3401.4,3400.9,2.4408]
[1721124137009,3.049,3401.1,3400.9,2.4408]
[1721124137213,3.049,3401.1,3400.5,5.38149]
[1721124138231,3.049,3401.1,3400.5,2.4408]
[1721124138556,0.39599865,3401.0,3400.5,2.4408]
[1721124139611,0.39599865,3401.0,3400.1,2.3497]
[1721124139612,3.33638865,3401.0,3400.1,2.3497]
[1721124139859,3.941911,3401.1,3400.1,2.3497]
[1721124139860,3.049,3400.5,3400.1,2.3497]
[1721124140628,3.049,3400.5,3399.9,2.94125]
[1721124143939,2.9404,3400.9,3400.0,2.94116]
[1721124144138,2.94048,3400.8,3400.0,2.94116]
[1721124144367,2.94057,3400.7,3400.0,2.94116]
[1721124144758,3.833558,3400.7,3400.0,2.94116]
[1721124147647,3.833558,3400.7,3400.1,2.94108]
[1721124147848,0.892988,3400.7,3400.1,2.94108]
[1721124148857,3.049,3401.0,3400.2,2.94091]
[1721124148858,5.98932,3401.0,3400.2,2.94091]
[1721124149246,0.39623588,3400.9,3400.2,2.94091]
[1721124149446,2.94042,3400.9,3400.2,2.94098]
[1721124151170,5.8809,3400.9,3400.2,2.94098]
[1721124151341,0.89299,3400.8,3400.2,2.94098]
[1721124153083,3.83347,3400.8,3400.2,2.94098]
[1721124153286,2.94059,3400.7,3400.0,2.94117]
[1721124153515,3.049,3400.5,3400.0,2.94117]
[1721124154463,4.031314,3400.5,3400.0,2.94117]
[1721124155188,4.031314,3400.5,3399.8,2.94132]
[1721124155384,6.972064,3400.5,3399.8,2.94132]
[1721124155964,3.049,3400.1,3399.7,2.2747]
[1721124156234,3.049,3400.1,3399.3,2.3659]
[1721124156235,2.94129,3399.9,3399.3,2.3659]
[1721124156520,5.99045,3399.7,3398.9,9.6659]
[1721124156725,3.049,3399.7,3399.0,2.94197]
[1721124157003,0.3049,3400.0,3399.2,2.94181]
[1721124157004,2.94126,3400.0,3399.2,2.94181]
[1721124157209,2.94129,3399.9,3399.2,2.94181]
[1721124157717,2.94126,3400.0,3398.9,5.30799]
[1721124158008,2.94135,3399.8,3399.0,2.94198]
[1721124158206,2.94145,3399.7,3398.9,2.3659]
[1721124158377,2.94145,3399.7,3398.9,5.30797]
[1721124158590,2.94144,3399.7,3399.0,2.94203]
[1721124158972,2.94144,3399.7,3398.9,5.30797]
[1721124158973,2.94152,3399.6,3398.9,5.30797]
[1721124159283,3.8946036,3399.6,3398.9,2.3659]
[1721124159484,2.9416,3399.5,3398.9,2.3659]
[1721124160077,3.049,3399.3,3398.5,2.94246]
[1721124160586,2.94186,3399.2,3398.5,2.94246]
[1721124160792,3.049,3399.3,3398.6,2.94237]
[1721124161177,5.99078,3399.3,3398.6,2.94237]
[1721124162077,6.97932636,3399.3,3398.6,2.94237]
[1721124162997,6.97932636,3399.3,3398.4,5.41521]
[1721124163381,6.97932636,3399.3,3398.5,2.94246]
[1721124163807,6.97932636,3399.3,3398.6,2.94238]
[1721124165794,6.97932636,3399.3,3398.5,2.94247]
[1721124165998,6.97932636,3399.3,3398.4,5.41519]
[1721124166814,6.97932636,3399.3,3398.6,2.94238]
[1721124167423,0.99209264,3399.2,3398.6,2.94238]
[1721124167717,3.33979264,3399.2,3398.5,2.94243]
[1721124168586,6.28166264,3399.2,3398.5,2.94243]
[1721124168924,3.049,3399.3,3398.8,2.94218]
[1721124169123,3.049,3399.3,3398.4,2.4727]
[1721124169124,3.049,3399.3,3398.5,2.94245]
[1721124169287,5.99083,3399.3,3398.6,2.94238]
[1721124171896,5.99083,3399.3,3398.7,2.94229]
[1721124172825,2.94183,3399.3,3398.7,2.94229]
[1721124173233,2.94168,3399.5,3398.7,2.94229]
[1721124173534,3.63605636,3399.5,3398.7,2.94229]
[1721124173833,2.94175,3399.4,3398.7,2.94229]
[1721124174727,3.63605636,3399.5,3398.6,2.94238]
[1721124174728,2.94179,3399.3,3398.6,2.94238]
[1721124174933,3.63605636,3399.5,3398.4,2.4727]
[1721124174934,0.69437636,3399.5,3398.8,2.94213]
[1721124175937,3.63598636,3399.5,3398.8,2.94213]
[1721124176143,0.96265064,3399.4,3398.8,2.94213]
[1721124176748,3.90441064,3399.4,3398.7,2.94225]
[1721124177121,2.94179,3399.3,3398.5,2.94244]
[1721124177322,2.94179,3399.3,3398.6,2.94237]
[1721124179055,6.30371064,3399.4,3398.7,2.9423]
[1721124179056,0.96265064,3399.4,3398.7,2.9423]
[1721124179226,3.90435064,3399.4,3398.7,2.9423]
[1721124179966,2.94178,3399.3,3398.7,2.9423]
[1721124180636,2.94179,3399.3,3398.7,2.9423]
[1721124180846,3.62640406,3399.3,3398.4,2.4727]
[1721124181154,0.68461406,3399.3,3398.7,2.94225]
[1721124181359,2.94167,3399.5,3398.8,2.9422]
[1721124182380,2.9417,3399.4,3398.8,2.9422]
[1721124182952,2.94167,3399.5,3398.8,2.9422]
[1721124183467,8.28256,3399.7,3398.9,2.94211]
[1721124183678,1.22993523,3399.6,3399.0,2.263]
[1721124183848,0.83338525,3399.6,3399.0,2.263]
[1721124184183,3.77490525,3399.6,3399.0,2.263]
[1721124184395,0.39654937,3399.5,3399.0,5.20503]
[1721124184688,0.05129253,3399.9,3399.0,5.20503]
[1721124184689,1.274,3399.9,3399.0,2.32183909]
[1721124184845,1.274,3400.1,3399.6,2.9415]
[1721124185289,1.274,3399.9,3399.3,2.94174]
[1721124185778,2.941,3400.2,3399.5,2.94154]
[1721124185779,1.274,3399.7,3399.5,2.94154]
[1721124185982,5.3398,3400.4,3398.8,1.274]
[1721124185983,1.274,3399.6,3398.8,2.4861]
[1721124186138,1.274,3399.3,3398.9,2.94206]
[1721124186456,2.94137,3399.8,3398.9,2.94206]
[1721124186789,0.396517,3399.7,3398.9,2.94206]
[1721124186945,0.396517,3399.7,3399.1,2.94195]
[1721124187142,0.3337887,3399.6,3399.1,2.94195]
[1721124189089,0.3337887,3399.6,3398.9,2.94206]
[1721124189295,0.39651868,3399.5,3398.9,5.88411]
[1721124189442,0.39651868,3399.5,3399.0,2.94198]
[1721124189643,0.39651868,3399.5,3399.1,2.94194]
[1721124191189,5.88278,3399.8,3399.1,2.94194]
[1721124191376,0.39651625,3399.7,3399.1,2.94194]
[1721124191881,0.39652194,3399.6,3399.1,2.94194]
[1721124192083,0.39652194,3399.5,3398.9,2.94205]
[1721124192255,2.94144,3399.7,3398.9,2.94205]
[1721124192584,1.26912789,3399.6,3399.0,2.94204]
[1721124192746,0.39652679,3399.5,3399.0,2.94204]
[1721124193142,3.33815679,3399.5,3398.8,5.42826]
[1721124193372,0.39652679,3399.4,3398.8,5.42826]
[1721124194060,0.39652679,3399.4,3398.8,2.94216]
[1721124194282,1.35056858,3399.4,3398.8,2.94216]
[1721124194496,0.39652679,3399.3,3398.8,2.94216]
[1721124194641,0.39652679,3399.3,3399.1,2.94189]
[1721124194841,1.54096568,3399.7,3399.1,2.94189]
[1721124195089,0.39653928,3399.6,3399.1,2.94189]
[1721124195590,0.39653928,3399.6,3398.9,5.25857]
[1721124195749,3.7236505,3399.5,3398.9,2.3165]
[1721124195957,0.39653928,3399.4,3398.9,2.3165]
[1721124196389,0.39653928,3399.4,3398.9,5.25861]
[1721124196756,0.39653928,3399.3,3398.9,5.25861]
[1721124197058,0.39653928,3399.5,3398.9,5.25861]
[1721124197495,0.88444878,3399.4,3398.9,5.25861]
[1721124197645,0.39653928,3399.3,3398.9,5.25861]
[1721124198288,0.39657555,3399.2,3398.9,5.25861]
[1721124198487,0.39657555,3399.1,3398.9,2.3165]
[1721124198646,0.39657555,3399.0,3398.6,5.28595]
[1721124198991,0.39657555,3398.9,3398.6,5.28595]
[1721124199189,0.39657555,3398.8,3398.6,5.28595]
[1721124199371,0.39657555,3398.7,3398.6,5.28595]
[1721124199571,0.39657555,3398.7,3398.6,2.3436]
[1721124199751,0.39657555,3399.0,3398.6,2.3436]
[1721124199947,0.39657555,3398.9,3398.6,2.3436]
[1721124200148,0.39657555,3398.8,3398.6,2.3436]
[1721124200349,1.54284667,3399.1,3398.6,2.3436]
[1721124200350,0.39657555,3398.7,3398.6,2.3436]
[1721124200785,0.39657555,3399.0,3398.6,2.3436]
[1721124200995,0.39657555,3398.9,3398.6,2.3436]
[1721124201150,0.39657555,3398.8,3398.6,2.3436]
[1721124201350,0.39657555,3398.7,3398.6,2.3436]
[1721124201550,0.39660102,3398.7,3398.6,5.28598]
[1721124201750,0.39660102,3399.0,3398.6,6.10883]
[1721124203479,1.94116925,3399.0,3398.6,5.28598]
[1721124203678,0.39660102,3398.9,3398.6,5.28598]
[1721124203880,0.39660102,3398.9,3398.6,2.3436]
[1721124204079,1.94116925,3398.9,3398.5,2.94241]
[1721124204396,0.39660102,3398.8,3398.5,2.94241]
[1721124204710,0.39664723,3398.7,3398.5,2.94241]
[1721124204850,0.39664723,3398.6,3398.3,5.26217]
[1721124205051,2.94195,3399.1,3398.4,2.94249]
[1721124205384,1.54528634,3398.9,3398.4,2.94249]
[1721124205568,3.03694623,3398.8,3398.3,5.26218]
[1721124205771,0.39668934,3398.7,3398.3,5.26218]
[1721124205972,1.94197568,3398.7,3398.3,5.26218]
[1721124206175,0.39668934,3398.6,3398.4,2.94253]
[1721124206554,1.54528634,3398.9,3398.5,2.94247]
[1721124206753,2.94182,3399.3,3398.5,2.94247]
[1721124206754,0.39663522,3398.8,3398.5,2.94247]
[1721124207060,0.39663522,3398.7,3398.5,2.94247]
[1721124207252,0.39663522,3398.6,3398.5,2.94247]
[1721124207579,1.94192156,3398.9,3398.3,3.14009]
[1721124207774,2.94196,3399.1,3398.3,2.94264]
[1721124207775,1.54497565,3398.8,3398.3,2.94264]
[1721124207981,1.49171082,3398.7,3398.3,2.94264]
[1721124208180,0.3967075,3398.6,3398.3,2.94264]
[1721124208491,1.274,3398.4,3398.0,5.42546]
[1721124208708,1.54504965,3398.5,3397.8,2.94305]
[1721124208709,1.274,3398.1,3397.8,2.94305]
[1721124208983,1.274,3398.1,3397.8,3.775726]
[1721124208984,0.3967075,3398.0,3397.8,3.775726]
[1721124209693,0.3967075,3398.0,3397.6,2.4405]
[1721124209852,0.3967075,3398.0,3397.4,2.94339]
[1721124209853,1.274,3397.7,3397.4,2.94339]
[1721124210056,0.39695442,3397.6,3397.4,2.94339]
[1721124210361,1.274,3397.7,3397.4,2.94339]
[1721124210568,0.3970121,3397.6,3397.4,2.94339]
[1721124210879,0.3970121,3397.6,3397.2,5.38407]
[1721124211096,0.39704813,3397.5,3397.2,5.38407]
[1721124211390,1.274,3397.7,3397.2,5.38407]
[1721124211567,0.39705925,3397.6,3397.2,5.38407]
[1721124211971,0.39705925,3397.6,3397.0,2.94373]
[1721124211972,1.274,3397.5,3397.0,5.41533]
[1721124212157,1.274,3397.3,3397.0,5.41533]
[1721124212371,2.94326,3397.6,3397.0,2.4716]
[1721124212567,2.94326,3397.6,3396.8,2.94387]
[1721124212568,0.39709688,3397.5,3396.8,2.94387]
[1721124213286,2.94357,3397.3,3396.7,2.4716]
[1721124213902,2.94349,3397.4,3396.7,2.4716]
[1721124214104,3.34068339,3397.3,3396.7,2.4716]
[1721124214264,2.94352,3397.3,3396.7,2.4716]
[1721124214968,2.94352,3397.3,3396.0,2.5108998]
[1721124215180,2.94374,3397.1,3396.2,2.9444]
[1721124215414,2.94374,3397.1,3396.4,2.94426]
[1721124217581,0.92871808,3397.5,3396.7,2.2823]
[1721124217789,0.146,3397.5,3396.9,2.94382]
[1721124217992,0.146,3397.5,3396.8,2.94391]
[1721124218306,0.146,3397.5,3397.0,2.94371]
[1721124219007,0.146,3397.5,3396.9,2.94383]
[1721124219210,0.775928,3397.5,3396.9,2.94383]
[1721124220126,2.94361,3397.2,3396.4,2.94422]
[1721124220330,2.94354,3397.3,3396.4,2.94422]
[1721124220502,0.9722838,3397.2,3396.5,2.94414]
[1721124220708,2.29,3397.1,3396.4,2.94422]
[1721124221126,2.94378,3397.0,3396.3,2.94436]
[1721124221515,2.94378,3397.0,3396.2,2.94444]
[1721124221516,3.06,3397.1,3396.4,2.94428]
[1721124222429,6.00369,3397.1,3396.4,2.94428]
[1721124223504,3.06,3397.1,3396.4,2.94428]
[1721124223731,3.06,3397.1,3396.1,2.2823]
[1721124223732,3.06,3397.1,3396.6,2.94406]
[1721124224032,3.06,3397.1,3396.7,2.94403]
[1721124225814,5.28477447,3397.4,3396.7,2.94403]
[1721124227433,5.28477447,3397.4,3396.5,2.9442]
[1721124227434,0.146,3397.5,3396.8,2.4723]
[1721124227611,0.146,3397.5,3397.2,2.94354]
[1721124228133,0.146,3397.5,3397.1,2.9436]
[1721124228448,0.146,3397.5,3397.3,2.94348]
[1721124228740,0.146,3397.5,3396.9,2.94382]
[1721124228907,2.94343,3397.4,3396.7,2.94402]
[1721124229109,4.400122,3397.4,3396.7,5.88797]
[1721124229448,4.400122,3397.4,3396.7,2.94395]
[1721124229795,2.94362,3397.2,3396.5,2.94416]
[1721124230838,2.94351,3397.3,3396.6,2.94407]
[1721124232644,1.456692,3397.4,3396.7,2.94399]
[1721124232808,1.456692,3397.4,3396.9,2.94385]
[1721124234299,1.3080052,3397.3,3396.9,2.94385]
[1721124234501,1.3080052,3397.3,3396.7,2.94397]
[1721124234900,1.3080052,3397.3,3396.7,2.94395]
[1721124235105,1.3080052,3397.3,3396.7,5.88792]
[1721124235308,1.3080052,3397.3,3396.5,2.94416]
[1721124235309,4.2515252,3397.3,3396.5,2.94416]
[1721124235502,3.68937252,3397.2,3396.5,2.94416]
[1721124235707,2.94369,3397.1,3396.4,2.94428]
[1721124236439,2.94369,3397.1,3396.3,2.94436]
[1721124237100,2.94369,3397.1,3396.3,2.9443]
[1721124237435,2.94369,3397.1,3396.4,2.94426]
[1721124237436,0.79409677,3397.0,3396.4,2.94426]
[1721124237647,6.14935,3397.5,3396.5,2.94417]
[1721124237828,6.14935,3397.5,3396.7,2.94402]
[1721124238030,9.09277,3397.5,3396.7,2.94402]
[1721124238241,6.14935,3397.5,3396.7,2.94402]
[1721124238415,6.14935,3397.5,3396.7,5.41662]
[1721124238416,1.456664,3397.4,3396.7,5.41662]
[1721124239101,3.206,3397.5,3396.8,2.94389]
[1721124239303,3.206,3397.5,3397.0,2.94376]
[1721124241410,3.206,3397.5,3396.9,2.94382]
[1721124241611,3.206,3397.5,3397.2,2.94357]
[1721124241802,3.206,3397.5,3396.7,2.4726]
[1721124241803,3.206,3397.5,3396.9,2.94378]
[1721124242030,0.6416,3397.4,3396.9,2.94378]
[1721124242231,0.6416,3397.4,3396.9,5.88756]
[1721124242436,3.206,3397.5,3397.0,2.94376]
[1721124242645,3.206,3397.5,3397.1,2.94367]
[1721124242821,0.146,3397.5,3397.1,2.94367]
[1721124244341,3.21,3397.6,3397.1,2.94367]
[1721124244342,3.156,3397.6,3397.1,2.94367]
[1721124245361,3.156,3397.6,3397.2,2.89358]
[1721124246660,3.156,3397.6,3397.4,2.94341]
[1721124248248,0.05131431,3397.8,3397.6,2.94318]
[1721124248442,7.37,3398.1,3397.7,2.94314]
[1721124250850,9.09900222,3398.1,3397.6,2.94318]
[1721124251042,9.09900222,3398.1,3397.6,5.88636]
[1721124251242,9.09900222,3398.1,3397.6,2.94318]
[1721124251442,1.72900222,3398.1,3397.6,2.94318]
[1721124251741,3.06,3398.3,3397.8,2.94301]
[1721124251742,7.03833382,3398.3,3397.8,2.94301]
[1721124252057,5.4998,3398.3,3397.8,2.94305]
[1721124252257,7.04044468,3398.3,3397.8,2.94305]
[1721124253219,2.63599539,3398.2,3397.8,2.94305]
[1721124253554,1.54064468,3398.2,3397.8,2.94305]
[1721124253959,2.63599415,3398.1,3397.8,2.94305]
[1721124254130,2.63601825,3398.0,3397.8,2.94305]
[1721124254331,1.54064468,3397.9,3397.8,2.94305]
[1721124255223,2.63853583,3397.9,3397.8,2.94305]
[1721124255419,6.5340372,3398.3,3397.8,2.94305]
[1721124255620,1.54353928,3397.9,3397.4,2.94336]
[1721124255821,1.54353928,3397.7,3396.8,2.465]
[1721124256024,2.63907125,3397.6,3397.2,2.94359]
[1721124256218,1.54353928,3397.5,3397.2,2.94359]
[1721124256750,1.54353928,3397.6,3397.2,2.94359]
[1721124258275,1.54400132,3397.5,3397.2,2.94359]
[1721124259655,1.54400132,3397.5,3397.0,2.94372]
[1721124259656,1.54400132,3397.5,3397.1,2.94368]
[1721124259880,1.54400132,3397.4,3397.1,2.94368]
[1721124260465,1.54400132,3397.4,3396.9,2.94385]
[1721124260780,1.54400132,3397.3,3396.9,2.94385]
[1721124261146,1.54400132,3397.2,3396.9,2.94385]
[1721124261355,1.54400132,3397.2,3396.6,2.3975]
[1721124261554,7.85617158,3397.5,3396.5,2.94416]
[1721124261555,2.63995975,3397.1,3396.5,2.94416]
[1721124261794,1.54425357,3397.0,3396.5,2.94413]
[1721124261947,1.54425357,3396.9,3396.5,2.94413]
[1721124263898,1.54425357,3396.9,3396.3,2.94434]
[1721124264379,1.54425357,3396.8,3396.3,2.94434]
[1721124264683,1.54425357,3396.8,3396.1,5.35683]
[1721124264684,1.5443722,3396.7,3396.1,5.35683]
[1721124264843,4.4884522,3396.7,3396.1,2.4123]
[1721124265047,1.5443722,3396.6,3396.1,2.4123]
[1721124265268,4.4884522,3396.7,3396.0,3.0916198]
[1721124265485,1.5443722,3396.5,3396.0,3.0916198]
[1721124266577,7.4325622,3396.7,3396.0,3.0916198]
[1721124267279,2.94413,3396.6,3396.0,3.0916198]
[1721124267453,2.94421,3396.5,3396.0,0.1469998]
[1721124269253,4.48777329,3396.7,3396.0,0.1469998]
[1721124269454,1.54369329,3396.7,3396.0,0.1469998]
[1721124269752,1.54369329,3396.8,3396.3,2.4874]
[1721124269947,4.48764329,3396.8,3396.3,2.4874]
[1721124270482,1.59502927,3396.9,3396.3,5.43176]
[1721124270649,1.59502927,3396.9,3396.5,2.94419]
[1721124270650,0.05133598,3396.9,3396.5,2.94419]
[1721124270853,0.05133598,3396.9,3396.5,5.88832]
[1721124271348,0.05133598,3396.9,3396.6,2.94411]
[1721124271549,0.05133598,3396.9,3396.5,2.94413]
[1721124271550,0.05133598,3396.9,3396.7,5.43142]
[1721124271788,7.37,3397.2,3396.8,0.837555]
[1721124271955,7.37,3397.2,3396.7,5.43142]
[1721124272155,1.54369329,3397.4,3396.7,5.43142]
[1721124272471,1.54369329,3397.4,3397.1,2.94363]
[1721124272674,0.05131806,3397.7,3397.1,5.88725]
[1721124272675,1.54369329,3397.5,3397.1,5.88725]
[1721124272847,1.54369329,3397.6,3397.1,2.94362]
[1721124273049,1.54369329,3397.6,3397.2,2.94357]
[1721124274051,0.05131806,3397.7,3397.2,2.94357]
[1721124274248,1.54292327,3397.6,3397.2,2.94357]
[1721124274452,1.54292327,3397.7,3397.3,2.4564]
[1721124274698,1.54292327,3398.1,3397.3,2.4564]
[1721124274901,1.54292327,3398.1,3397.4,0.24564]
[1721124275099,0.39695348,3398.0,3397.4,0.24564]
[1721124275593,0.39695348,3398.0,3397.7,2.94311]
[1721124277359,10.31243,3398.6,3397.8,5.34062992]
[1721124277360,0.39695959,3397.9,3397.8,5.34062992]
[1721124277566,7.37,3398.6,3398.0,2.9429]
[1721124277918,4.79274825,3399.0,3398.0,2.9429]
[1721124277919,0.39679015,3398.5,3398.2,2.94268]
[1721124278055,0.39679015,3398.4,3398.2,2.94268]
[1721124278252,4.79274825,3399.0,3398.2,2.94268]
[1721124278253,0.39679015,3398.3,3398.2,2.94268]
[1721124279113,0.3967837,3398.5,3398.4,2.94256]
[1721124279274,1.54224854,3399.0,3398.6,2.94235]
[1721124279453,0.39672673,3398.9,3398.6,2.94235]
[1721124280072,1.54224854,3399.1,3398.7,2.9423]
[1721124280073,0.39672673,3398.8,3398.7,2.9423]
[1721124280437,0.05129588,3399.2,3398.7,2.9423]
[1721124280438,1.59173709,3399.2,3398.9,2.94212]
[1721124280578,0.39663789,3399.1,3398.9,2.94212]
[1721124280905,0.05129588,3399.2,3398.9,2.94212]
[1721124281110,0.3966252,3399.1,3398.9,2.94212]
[1721124281279,0.05129588,3399.2,3398.9,2.94212]
[1721124284509,0.05129588,3399.2,3398.6,2.4521]
[1721124284676,0.29930959,3399.1,3398.6,2.94238]
[1721124288873,0.05129588,3399.2,3398.2,5.2022]
[1721124289501,3.06,3399.5,3398.2,5.2022]
[1721124289931,3.06,3399.5,3398.9,2.94211]
[1721124292589,2.94135,3399.8,3399.0,2.94203]
[1721124292790,2.94135,3399.8,3398.8,2.4918]
[1721124292791,10.4812427,3399.9,3399.1,2.94194]
[1721124292990,2.94121,3400.0,3399.1,2.94194]
[1721124293179,1.153874,3399.9,3399.1,2.94194]
[1721124293376,1.153874,3399.9,3399.2,2.94186]
[1721124294207,2.94121,3400.0,3399.3,2.3397]
[1721124294921,3.18,3400.1,3399.8,2.94134]
[1721124295133,10.31068,3400.6,3399.8,2.94134]
[1721124295134,7.37,3400.6,3399.8,2.94134]
[1721124295625,7.37,3400.6,3399.9,2.94126]
[1721124295807,1.03618117,3400.5,3399.9,2.94126]
[1721124296014,0.0512417,3400.8,3400.0,2.3397]
[1721124296236,0.0512417,3400.8,3400.1,2.94102]
[1721124297608,2.9408,3400.5,3399.6,2.94146]
[1721124297807,6.0008,3400.5,3399.7,2.94143]
[1721124298039,2.941,3400.2,3399.5,2.9416]
[1721124298250,0.588184,3400.1,3399.5,2.9416]
[1721124298418,6.589274,3400.1,3398.5,2.94242]
[1721124298621,2.94136,3399.8,3399.1,2.94189]
[1721124298907,6.589294,3400.1,3398.9,5.24692]
[1721124298908,2.9412,3400.0,3399.2,2.94186]
[1721124299408,2.94126,3399.9,3399.2,2.94186]
[1721124299627,0.6589444,3399.8,3399.0,5.88401]
[1721124299930,0.6589444,3399.8,3398.9,2.3048]
[1721124299931,3.6003044,3399.8,3399.1,2.94195]
[1721124300301,0.6589444,3399.8,3399.2,2.94186]
[1721124300503,2.94126,3399.9,3399.2,2.94186]
[1721124300838,6.00109,3400.1,3399.2,2.94186]
[1721124301036,2.94127,3399.9,3399.2,2.94186]
[1721124301260,2.94144,3399.7,3398.9,2.3048]
[1721124301651,2.94144,3399.7,3399.0,2.94196]
[1721124301939,3.529711,3399.7,3399.0,2.94196]
[1721124302736,3.529711,3399.7,3399.1,2.94194]
[1721124302922,0.588271,3399.7,3399.1,2.94194]
[1721124303128,2.94121,3400.0,3399.1,2.94194]
[1721124303348,2.94121,3400.0,3398.9,2.3048]
[1721124303349,2.94143,3399.7,3398.9,2.3048]
[1721124303565,2.94143,3399.7,3399.0,2.94199]
[1721124303916,2.94153,3399.6,3398.9,5.24691]
[1721124305143,2.94153,3399.6,3399.0,2.94204]
[1721124305456,6.46268354,3400.1,3399.2,2.94179]
[1721124305827,7.37,3400.3,3399.0,0.818895]
[1721124306133,7.37,3400.3,3399.5,2.94153]
[1721124306455,7.37,3400.3,3399.6,2.94145]
[1721124306620,7.37,3400.3,3399.7,2.2767]
[1721124307961,10.31093,3400.3,3399.7,2.2767]
[1721124308321,7.37,3400.3,3399.7,2.2767]
[1721124308518,9.001149,3400.3,3399.7,2.2767]
[1721124308719,9.001149,3400.3,3399.7,5.21809]
[1721124310718,9.001149,3400.3,3399.7,8.15945]
[1721124310956,1.631149,3400.3,3399.7,8.15945]
[1721124311549,1.631149,3400.3,3399.8,2.94133]
[1721124311732,3.06,3400.5,3399.8,2.94133]
[1721124311930,0.0512417,3400.8,3399.8,0.05882636]
[1721124312244,0.0512417,3400.8,3399.7,2.2767]
[1721124312245,2.94062,3400.7,3399.9,2.94121]
[1721124313148,2.94062,3400.7,3399.9,2.94119]
[1721124313650,2.94062,3400.7,3400.0,2.94114]
[1721124313958,4.06949317,3400.7,3400.0,2.94114]
[1721124314660,4.06949317,3400.7,3400.1,2.94106]
[1721124314976,4.06949317,3400.7,3399.7,2.2767]
[1721124314977,4.06949317,3400.7,3399.7,2.94135]
[1721124315122,6.00078,3400.5,3399.7,2.94135]
[1721124315771,6.00078,3400.5,3399.8,2.94134]
[1721124316060,6.00078,3400.5,3399.2,2.94184]
[1721124316061,1.00702732,3400.4,3399.2,2.94184]
[1721124316293,2.94118,3400.0,3399.2,2.94184]
[1721124316577,2.94118,3400.0,3399.3,2.94178]